fUSD/lending_fUSD_20250209
["ID","MTS","AMOUNT","RATE_DAILY","PERIOD"]
[352370440,1739065837161,-500.0,0.0001013,2]
[352370441,1739065837172,-500.0,0.0001013,2]
[352370442,1739065837181,-503.53910049,0.0001013,2]
[352370443,1739065837190,-506.1185332,0.0001013,2]
[352370444,1739065837200,-500.0,0.0001013,2]
[352370445,1739065837209,-503.52239331,0.0001013,2]
[352370446,1739065837221,-500.0,0.0001013,2]
[352370447,1739065837231,-500.0,0.0001013,2]
[352370448,1739065837240,-500.0,0.0001013,2]
[352370449,1739065837250,-500.0,0.0001013,2]
[352370450,1739065837259,-500.0,0.0001013,2]
[352370451,1739065837269,-500.0,0.0001013,2]
[352370452,1739065837278,-500.0,0.0001013,2]
[352370453,1739065837288,-502.2996887,0.0001013,2]
[352370454,1739065837297,-517.4066166,0.0001013,2]
[352370455,1739065837307,-500.0,0.0001013,2]
[352370456,1739065837316,-500.0,0.0001013,2]
[352370457,1739065837326,-500.0,0.0001013,2]
[352370458,1739065837335,-503.26766184,0.0001013,2]
[352370459,1739065837344,-500.0,0.0001013,2]
[352370460,1739065837354,-500.0,0.0001013,2]
[352370461,1739065837364,-500.0,0.0001013,2]
[352370462,1739065837373,-500.0,0.0001013,2]
[352370463,1739065837383,-500.0,0.0001013,2]
[352370464,1739065837392,-500.0,0.0001013,2]
[352370465,1739065837401,-500.0,0.0001013,2]
[352370466,1739065837410,-500.0,0.0001013,2]
[352370467,1739065837419,-500.0,0.0001013,2]
[352370468,1739065837428,-500.0,0.0001013,2]
[352370469,1739065837438,-500.0,0.0001013,2]
[352370470,1739065837448,-500.0,0.0001013,2]
[352370471,1739065837457,-503.40137015,0.0001013,2]
[352370472,1739065837469,-500.0,0.0001013,2]
[352370473,1739065837479,-506.13,0.0001013,2]
[352370474,1739065837488,-502.43865512,0.0001013,2]
[352370475,1739065837497,-500.0,0.0001013,2]
[352370477,1739065837507,-500.0,0.0001013,2]
[352370478,1739065837517,-500.0,0.0001013,2]
[352370479,1739065837526,-500.0,0.0001013,2]
[352370480,1739065837535,-504.92770379,0.0001013,2]
[352370481,1739065837545,-500.0,0.0001013,2]
[352370482,1739065837554,-500.91830893,0.0001013,2]
[352370483,1739065837563,-504.05127207,0.0001013,2]
[352370484,1739065837572,-500.0,0.0001013,2]
[352370485,1739065837582,-500.0,0.0001013,2]
[352370486,1739065837592,-500.0,0.0001013,2]
[352370487,1739065837602,-500.0,0.0001013,2]
[352370488,1739065837612,-500.0,0.0001013,2]
[352370489,1739065837621,-500.0,0.0001013,2]
[352370490,1739065837631,-500.0,0.0001013,2]
[352370491,1739065837640,-500.0,0.0001013,2]
[352370492,1739065837650,-501.44528444,0.0001013,2]
[352370493,1739065837660,-500.0,0.0001013,2]
[352370494,1739065837669,-158.643747,0.0001013,2]
[352370495,1739065837679,-501.04775585,0.0001013,2]
[352370496,1739065837688,-500.0,0.0001013,2]
[352370497,1739065837698,-500.0,0.0001013,2]
[352370498,1739065837707,-502.31113453,0.0001013,2]
[352370499,1739065837718,-500.0,0.0001013,2]
[352370500,1739065837728,-500.35568377,0.0001013,2]
[352370501,1739065837737,-500.0,0.0001013,2]
[352370502,1739065837746,-500.0,0.0001013,2]
[352370503,1739065837756,-500.0,0.0001013,2]
[352370504,1739065837766,-500.0,0.0001013,2]
[352370505,1739065837775,-500.0,0.0001013,2]
[352370506,1739065837784,-500.0,0.0001013,2]
[352370507,1739065837794,-503.50090107,0.0001013,2]
[352370508,1739065837803,-500.0,0.0001013,2]
[352370509,1739065837813,-504.99167952,0.0001013,2]
[352370510,1739065837822,-502.44315299,0.0001013,2]
[352370511,1739065837832,-500.0,0.0001013,2]
[352370512,1739065837841,-500.0,0.0001013,2]
[352370513,1739065837850,-503.37050678,0.0001013,2]
[352370514,1739065837859,-500.0,0.0001013,2]
[352370515,1739065837868,-507.54932446,0.0001013,2]
[352370516,1739065837878,-501.23496664,0.0001013,2]
[352370517,1739065837888,-500.0,0.0001013,2]
[352370518,1739065837897,-503.29398652,0.0001013,2]
[352370519,1739065837907,-502.65665476,0.0001013,2]
[352370520,1739065837917,-500.0,0.0001013,2]
[352370521,1739065837926,-500.0,0.0001013,2]
[352370522,1739065837936,-503.50905676,0.0001013,2]
[352370524,1739065837945,-500.0,0.0001013,2]
[352370526,1739065837954,-500.0,0.0001013,2]
[352370527,1739065837965,-500.0,0.0001013,2]
[352370528,1739065837974,-500.0,0.0001013,2]
[352370530,1739065837983,-500.0,0.0001013,2]
[352370532,1739065837992,-500.0,0.0001013,2]
[352370534,1739065838002,-500.0,0.0001013,2]
[352370536,1739065838011,-500.0,0.0001013,2]
[352370538,1739065838021,-501.79410784,0.0001013,2]
[352370540,1739065838030,-500.0,0.0001013,2]
[352370542,1739065838039,-502.97613386,0.0001013,2]
[352370544,1739065838048,-500.0,0.0001013,2]
[352370547,1739065838057,-507.51030092,0.0001013,2]
[352370549,1739065838066,-500.0,0.0001013,2]
[352370551,1739065838076,-500.0,0.0001013,2]
[352370553,1739065838086,-500.0,0.0001013,2]
[352370554,1739065838095,-500.0,0.0001013,2]
[352370555,1739065838104,-500.0,0.0001013,2]
[352370556,1739065838114,-500.0,0.0001013,2]
[352370557,1739065838124,-251.87377697,0.0001013,2]
[352370558,1739065838134,-504.50079106,0.0001013,2]
[352370559,1739065838143,-501.19672173,0.0001013,2]
[352370560,1739065838152,-500.0,0.0001013,2]
[352370561,1739065838163,-500.0,0.0001013,2]
[352370563,1739065838171,-528.55075351,0.0001013,2]
[352370565,1739065838181,-500.0,0.0001013,2]
[352370567,1739065838190,-500.0,0.0001013,2]
[352370569,1739065838199,-500.0,0.0001013,2]
[352370571,1739065838208,-421.72808189,0.0001013,2]
[352370572,1739065838218,-502.12778699,0.0001013,2]
[352370573,1739065838228,-500.0,0.0001013,2]
[352370574,1739065838237,-502.49133187,0.0001013,2]
[352370575,1739065838246,-500.72164468,0.0001013,2]
[352370576,1739065838256,-505.36435933,0.0001013,2]
[352370577,1739065838265,-501.60840067,0.0001013,2]
[352370578,1739065838275,-505.7292717,0.0001013,2]
[352370579,1739065838284,-500.0,0.0001013,2]
[352370580,1739065838293,-508.4382913,0.0001013,2]
[352370581,1739065838303,-502.1110482,0.0001013,2]
[352370582,1739065838312,-500.0,0.0001013,2]
[352370583,1739065838322,-500.0,0.0001013,2]
[352370584,1739065838331,-500.0,0.0001013,2]
[352370585,1739065838340,-500.0,0.0001013,2]
[352370586,1739065838350,-302.38140977,0.0001013,2]
[352370587,1739065838360,-500.0,0.0001013,2]
[352370588,1739065838369,-501.46116718,0.0001013,2]
[352370589,1739065838379,-502.68167811,0.0001013,2]
[352370590,1739065838389,-503.83351498,0.0001013,2]
[352370591,1739065838398,-500.0,0.0001013,2]
[352370592,1739065838407,-217.87,0.0001013,2]
[352370593,1739065838416,-502.07770946,0.0001013,2]
[352370594,1739065838426,-502.44511926,0.0001013,2]
[352370595,1739065838435,-500.0,0.0001013,2]
[352370596,1739065838444,-530.46162911,0.0001013,2]
[352370597,1739065838454,-507.32742226,0.0001013,2]
[352370598,1739065838465,-500.0,0.0001013,2]
[352370599,1739065838477,-500.0,0.0001013,2]
[352370600,1739065838486,-503.76225606,0.0001013,2]
[352370601,1739065838495,-500.0,0.0001013,2]
[352370602,1739065838505,-500.0,0.0001013,2]
[352370603,1739065838515,-500.0,0.0001013,2]
[352370604,1739065838524,-500.0,0.0001013,2]
[352370605,1739065838533,-501.52321757,0.0001013,2]
[352370606,1739065838543,-501.63553484,0.0001013,2]
[352370607,1739065838552,-502.22226548,0.0001013,2]
[352370608,1739065838561,-500.0,0.0001013,2]
[352370609,1739065838571,-500.0,0.0001013,2]
[352370610,1739065838580,-501.75389703,0.0001013,2]
[352370611,1739065838592,-514.71608503,0.0001013,2]
[352370612,1739065838601,-500.0,0.0001013,2]
[352370613,1739065838610,-502.93741721,0.0001013,2]
[352370614,1739065838619,-505.45764528,0.0001013,2]
[352370615,1739065838629,-500.0,0.0001013,2]
[352370616,1739065838638,-507.34256615,0.0001013,2]
[352370617,1739065838647,-502.74171187,0.0001013,2]
[352370618,1739065838657,-500.0,0.0001013,2]
[352370619,1739065838666,-500.0,0.0001013,2]
[352370620,1739065838675,-500.0,0.0001013,2]
[352370621,1739065838685,-500.80579401,0.0001013,2]
[352370622,1739065838694,-501.01853553,0.0001013,2]
[352370623,1739065838703,-500.0,0.0001013,2]
[352370624,1739065838712,-503.16996454,0.0001013,2]
[352370625,1739065838721,-500.98934489,0.0001013,2]
[352370626,1739065838730,-501.86354912,0.0001013,2]
[352370627,1739065838740,-500.0,0.0001013,2]
[352370628,1739065838749,-500.9762191,0.0001013,2]
[352370629,1739065838759,-500.0,0.0001013,2]
[352370630,1739065838768,-500.0,0.0001013,2]
[352370631,1739065838778,-500.0,0.0001013,2]
[352370632,1739065838788,-500.0,0.0001013,2]
[352370633,1739065838797,-500.0,0.0001013,2]
[352370634,1739065838806,-500.0,0.0001013,2]
[352370635,1739065838816,-500.0,0.0001013,2]
[352370636,1739065838826,-500.0,0.0001013,2]
[352370637,1739065838835,-500.0,0.0001013,2]
[352370638,1739065838844,-500.0,0.0001013,2]
[352370639,1739065838853,-500.0,0.0001013,2]
[352370640,1739065838863,-500.0,0.0001013,2]
[352370641,1739065838873,-500.0,0.0001013,2]
[352370642,1739065838883,-501.50215996,0.0001013,2]
[352370643,1739065838892,-506.9941371,0.0001013,2]
[352370644,1739065838902,-503.52391608,0.0001013,2]
[352370645,1739065838911,-500.0,0.0001013,2]
[352370646,1739065838920,-500.0,0.0001013,2]
[352370647,1739065838929,-500.0,0.0001013,2]
[352370648,1739065838939,-500.0,0.0001013,2]
[352370649,1739065838948,-500.0,0.0001013,2]
[352370650,1739065838958,-500.0,0.0001013,2]
[352370651,1739065838970,-501.99661091,0.0001013,2]
[352370652,1739065838979,-501.91770324,0.0001013,2]
[352370653,1739065838988,-500.0,0.0001013,2]
[352370654,1739065838998,-500.0,0.0001013,2]
[352370655,1739065839008,-502.36686165,0.0001013,2]
[352370656,1739065839018,-506.83234978,0.0001013,2]
[352370657,1739065839027,-516.53331772,0.0001013,2]
[352370658,1739065839037,-500.0,0.0001013,2]
[352370659,1739065839047,-500.0,0.0001013,2]
[352370660,1739065839057,-501.94432299,0.0001013,2]
[352370661,1739065839067,-500.0,0.0001013,2]
[352370662,1739065839078,-500.0,0.0001013,2]
[352370663,1739065839095,-503.38285825,0.0001013,2]
[352370664,1739065839104,-500.0,0.0001013,2]
[352370665,1739065839114,-500.0,0.0001013,2]
[352370666,1739065839123,-500.0,0.0001013,2]
[352370667,1739065839133,-500.0,0.0001013,2]
[352370668,1739065839143,-500.0,0.0001013,2]
[352370669,1739065839152,-500.0,0.0001013,2]
[352370670,1739065839162,-500.0,0.0001013,2]
[352370671,1739065839172,-500.0,0.0001013,2]
[352370672,1739065839182,-500.0,0.0001013,2]
[352370673,1739065839191,-500.0,0.0001013,2]
[352370674,1739065839200,-500.0,0.0001013,2]
[352370675,1739065839209,-500.0,0.0001013,2]
[352370676,1739065839220,-500.0,0.0001013,2]
[352370677,1739065839230,-500.64680093,0.0001013,2]
[352370678,1739065839240,-500.0,0.0001013,2]
[352370679,1739065839250,-501.71462754,0.0001013,2]
[352370680,1739065839259,-500.0,0.0001013,2]
[352370681,1739065839268,-500.0,0.0001013,2]
[352370682,1739065839278,-500.0,0.0001013,2]
[352370683,1739065839287,-500.0,0.0001013,2]
[352370684,1739065839297,-500.0,0.0001013,2]
[352370685,1739065839306,-500.0,0.0001013,2]
[352370686,1739065839315,-500.0,0.0001013,2]
[352370687,1739065839324,-311.56227862,0.0001013,2]
[352370688,1739065839335,-500.0,0.0001013,2]
[352370689,1739065839345,-500.0,0.0001013,2]
[352370690,1739065839355,-501.89527351,0.0001013,2]
[352370691,1739065839365,-503.77587103,0.0001013,2]
[352370692,1739065839375,-500.0,0.0001013,2]
[352370693,1739065839385,-500.0,0.0001013,2]
[352370694,1739065839442,-500.0,0.0001013,2]
[352370695,1739065839452,-500.0,0.0001013,2]
[352370696,1739065839463,-500.0,0.0001013,2]
[352370697,1739065839472,-500.0,0.0001013,2]
[352370698,1739065839482,-505.69858434,0.0001013,2]
[352370699,1739065839491,-501.10663964,0.0001013,2]
[352370700,1739065839501,-500.0,0.0001013,2]
[352370702,1739065839510,-500.0,0.0001013,2]
[352370704,1739065839519,-500.0,0.0001013,2]
[352370706,1739065839528,-500.0,0.0001013,2]
[352370707,1739065839538,-500.0,0.0001013,2]
[352370708,1739065839547,-500.0,0.0001013,2]
[352370709,1739065839557,-500.0,0.0001013,2]
[352370710,1739065839566,-500.0,0.0001013,2]
[352370711,1739065839576,-502.44421933,0.0001013,2]
[352370712,1739065839585,-500.0,0.0001013,2]
[352370713,1739065839595,-500.0,0.0001013,2]
[352370714,1739065839605,-500.0,0.0001013,2]
[352370715,1739065839614,-500.0,0.0001013,2]
[352370716,1739065839624,-500.0,0.0001013,2]
[352370717,1739065839633,-500.0,0.0001013,2]
[352370718,1739065839642,-500.0,0.0001013,2]
[352370719,1739065839651,-500.0,0.0001013,2]
[352370720,1739065839661,-500.0,0.0001013,2]
[352370721,1739065839670,-503.48138389,0.0001013,2]
[352370722,1739065839679,-500.0,0.0001013,2]
[352370723,1739065839688,-500.0,0.0001013,2]
[352370724,1739065839698,-500.0,0.0001013,2]
[352370725,1739065839707,-500.0,0.0001013,2]
[352370726,1739065839718,-500.0,0.0001013,2]
[352370727,1739065839727,-500.0,0.0001013,2]
[352370728,1739065839736,-500.0,0.0001013,2]
[352370729,1739065839745,-500.0,0.0001013,2]
[352370730,1739065839755,-500.0,0.0001013,2]
[352370731,1739065839765,-500.0,0.0001013,2]
[352370732,1739065839773,-500.0,0.0001013,2]
[352370733,1739065839783,-500.0,0.0001013,2]
[352370734,1739065839793,-500.0,0.0001013,2]
[352370735,1739065839803,-500.0,0.0001013,2]
[352370736,1739065839813,-502.41647709,0.0001013,2]
[352370737,1739065839823,-500.0,0.0001013,2]
[352370738,1739065839832,-500.0,0.0001013,2]
[352370739,1739065839842,-500.0,0.0001013,2]
[352370740,1739065839851,-500.0,0.0001013,2]
[352370741,1739065839861,-500.0,0.0001013,2]
[352370742,1739065839871,-500.0,0.0001013,2]
[352370743,1739065839881,-500.0,0.0001013,2]
[352370744,1739065839891,-500.0,0.0001013,2]
[352370745,1739065839900,-550.70225148,0.0001013,2]
[352370746,1739065839910,-504.15510925,0.0001013,2]
[352370747,1739065839919,-500.0,0.0001013,2]
[352370748,1739065839929,-500.0,0.0001013,2]
[352370749,1739065839939,-500.0,0.0001013,2]
[352370750,1739065839948,-500.0,0.0001013,2]
[352370751,1739065839958,-500.0,0.0001013,2]
[352370752,1739065839968,-500.0,0.0001013,2]
[352370753,1739065839978,-500.0,0.0001013,2]
[352370754,1739065839987,-500.0,0.0001013,2]
[352370755,1739065839997,-500.0,0.0001013,2]
[352370756,1739065840006,-500.0,0.0001013,2]
[352370757,1739065840015,-500.0,0.0001013,2]
[352370758,1739065840024,-500.0,0.0001013,2]
[352370759,1739065840033,-500.7201923,0.0001013,2]
[352370760,1739065840043,-500.0,0.0001013,2]
[352370761,1739065840052,-500.0,0.0001013,2]
[352370762,1739065840062,-333.00958672,0.0001013,2]
[352370763,1739065840071,-500.63233247,0.0001013,2]
[352370764,1739065840081,-500.0,0.0001013,2]
[352370765,1739065840093,-500.0,0.0001013,2]
[352370766,1739065840103,-500.0,0.0001013,2]
[352370767,1739065840112,-500.0,0.0001013,2]
[352370768,1739065840123,-500.0,0.0001013,2]
[352370769,1739065840132,-500.0,0.0001013,2]
[352370770,1739065840141,-500.0,0.0001013,2]
[352370771,1739065840151,-500.9466384,0.0001013,2]
[352370772,1739065840161,-517.69,0.0001013,2]
[352370773,1739065840170,-500.0,0.0001013,2]
[352370774,1739065840179,-501.59430823,0.0001013,2]
[352370775,1739065840189,-500.0,0.0001013,2]
[352370776,1739065840199,-500.0,0.0001013,2]
[352370777,1739065840209,-500.0,0.0001013,2]
[352370778,1739065840220,-500.0,0.0001013,2]
[352370779,1739065840228,-500.0,0.0001013,2]
[352370780,1739065840238,-554.93,0.0001013,2]
[352370781,1739065840248,-504.30292532,0.0001013,2]
[352370782,1739065840258,-500.0,0.0001013,2]
[352370783,1739065840268,-999.77,0.0001013,2]
[352370784,1739065840278,-500.0,0.0001013,2]
[352370785,1739065840288,-500.0,0.0001013,2]
[352370786,1739065840297,-501.88532094,0.0001013,2]
[352370787,1739065840307,-500.0,0.0001013,2]
[352370788,1739065840317,-500.0,0.0001013,2]
[352370789,1739065840326,-500.0,0.0001013,2]
[352370790,1739065840335,-500.0,0.0001013,2]
[352370791,1739065840345,-500.0,0.0001013,2]
[352370792,1739065840354,-501.23419522,0.0001013,2]
[352370793,1739065840363,-500.0,0.0001013,2]
[352370794,1739065840372,-502.5630754,0.0001013,2]
[352370795,1739065840381,-1083.06,0.0001013,2]
[352370796,1739065840391,-500.0,0.0001013,2]
[352370797,1739065840399,-592.63707088,0.0001013,2]
[352370798,1739065840408,-500.0,0.0001013,2]
[352370799,1739065840417,-500.0,0.0001013,2]
[352370800,1739065840427,-500.0,0.0001013,2]
[352370801,1739065840437,-500.0,0.0001013,2]
[352370802,1739065840447,-500.0,0.0001013,2]
[352370803,1739065840456,-533.58,0.0001013,2]
[352370804,1739065840466,-899.57,0.0001013,2]
[352370805,1739065840475,-500.0,0.0001013,2]
[352370806,1739065840486,-500.0,0.0001013,2]
[352370807,1739065840495,-2827.44,0.0001013,2]
[352370808,1739065840506,-500.0,0.0001013,2]
[352370809,1739065840516,-500.0,0.0001013,2]
[352370810,1739065840525,-500.0,0.0001013,2]
[352370811,1739065840534,-500.0,0.0001013,2]
[352370812,1739065840544,-500.0,0.0001013,2]
[352370813,1739065840553,-814.38,0.0001013,2]
[352370814,1739065840563,-500.0,0.0001013,2]
[352370815,1739065840572,-500.0,0.0001013,2]
[352370816,1739065840581,-1161.87,0.0001013,2]
[352370817,1739065840591,-500.0,0.0001013,2]
[352370818,1739065840600,-500.0,0.0001013,2]
[352370819,1739065840609,-500.0,0.0001013,2]
[352370820,1739065840618,-1281.49,0.0001013,2]
[352370821,1739065840628,-500.0,0.0001013,2]
[352370822,1739065840637,-156.54170116,0.0001013,2]
[352370823,1739065840647,-500.0,0.0001013,2]
[352370824,1739065840657,-1000.0,0.0001013,2]
[352370825,1739065840667,-500.0,0.0001013,2]
[352370826,1739065840676,-500.0,0.0001013,2]
[352370827,1739065840685,-1007.35,0.0001013,2]
[352370828,1739065840695,-500.0,0.0001013,2]
[352370829,1739065840705,-500.0,0.0001013,2]
[352370830,1739065840715,-500.0,0.0001013,2]
[352370831,1739065840725,-500.82640589,0.0001013,2]
[352370832,1739065840735,-500.0,0.0001013,2]
[352370833,1739065840744,-500.0,0.0001013,2]
[352370834,1739065840754,-1979.78,0.0001013,2]
[352370835,1739065840764,-500.0,0.0001013,2]
[352370836,1739065840773,-500.0,0.0001013,2]
[352370837,1739065840782,-2191.6,0.0001013,2]
[352370838,1739065840792,-500.0,0.0001013,2]
[352370839,1739065840801,-500.0,0.0001013,2]
[352370840,1739065840811,-500.0,0.0001013,2]
[352370841,1739065840820,-501.00716756,0.0001013,2]
[352370842,1739065840830,-218.71642242,0.0001013,2]
[352370843,1739065840839,-500.0,0.0001013,2]
[352370844,1739065840849,-500.0,0.0001013,2]
[352370845,1739065840858,-500.0,0.0001013,2]
[352370846,1739065840868,-500.0,0.0001013,2]
[352370847,1739065840878,-500.0,0.0001013,2]
[352370848,1739065840887,-500.0,0.0001013,2]
[352370849,1739065840896,-378.65,0.0001013,2]
[352370850,1739065840906,-152.32,0.0001013,2]
[352370851,1739065840916,-269.46815831,0.00010132,2]
[352370852,1739065840925,-500.73052291,0.00010132,2]
[352370853,1739065840935,-500.66081445,0.00010132,2]
[352370854,1739065840945,-502.7446965,0.00010132,2]
[352370855,1739065840954,-500.84912889,0.00010132,2]
[352370856,1739065840965,-505.85590665,0.00010132,2]
[352370857,1739065840975,-501.08760928,0.00010132,2]
[352370858,1739065840984,-500.90649864,0.00010132,2]
[352370859,1739065840993,-500.23359589,0.00010132,2]
[352370860,1739065841002,-500.89450974,0.00010132,2]
[352370861,1739065841012,-501.09690341,0.00010132,2]
[352370862,1739065841021,-501.98112171,0.00010132,2]
[352370863,1739065841031,-501.59853934,0.00010132,2]
[352370864,1739065841040,-500.0,0.00010132,2]
[352370865,1739065841048,-501.43179191,0.00010132,2]
[352370866,1739065841057,-500.0,0.00010132,2]
[352370867,1739065841066,-500.0,0.00010132,2]
[352370868,1739065841076,-300.88253366,0.00010132,2]
[352370869,1739065841086,-506.12010031,0.00010132,2]
[352370870,1739065841096,-500.0,0.00010132,2]
[352370871,1739065841106,-500.0,0.00010132,2]
[352370872,1739065841115,-500.0,0.00010132,2]
[352370873,1739065841125,-500.0,0.00010132,2]
[352370874,1739065841134,-500.0,0.00010132,2]
[352370875,1739065841143,-503.27498403,0.00010132,2]
[352370876,1739065841153,-501.60219238,0.00010132,2]
[352370877,1739065841163,-501.57086646,0.00010132,2]
[352370878,1739065841173,-281.59504263,0.00010132,2]
[352370879,1739065841183,-617.14167202,0.00010132,2]
[352370880,1739065841193,-300.26797282,0.00010132,2]
[352370881,1739065841203,-500.0,0.00010132,2]
[352370882,1739065841212,-501.12484649,0.00010132,2]
[352370883,1739065841222,-500.78055919,0.00010132,2]
[352370884,1739065841232,-500.89206919,0.00010132,2]
[352370885,1739065841241,-501.54805124,0.00010132,2]
[352370886,1739065841250,-500.80446551,0.00010132,2]
[352370887,1739065841259,-501.36454298,0.00010132,2]
[352370888,1739065841268,-501.10406073,0.00010132,2]
[352370889,1739065841277,-500.0,0.00010132,2]
[352370890,1739065841286,-500.92921152,0.00010132,2]
[352370891,1739065841295,-515.06781677,0.00010132,2]
[352370892,1739065841304,-500.0,0.00010132,2]
[352370893,1739065841313,-500.0,0.00010132,2]
[352370894,1739065841322,-163.67,0.00010137,2]
[352370895,1739065841331,-55873.348322,0.00010147,2]
[352370896,1739065841340,-163.22016653,0.00010167,2]
[352370897,1739065841349,-153.78064735,0.00010169,2]
[352370898,1739065841358,-150.0,0.0001017,2]
[352370899,1739065841367,-985.45,0.0001017,2]
[352370900,1739065841376,-994.54,0.0001017,2]
[352370901,1739065841386,-500.51871536,0.00010173,2]
[352370902,1739065841395,-500.0,0.00010173,2]
[352370903,1739065841404,-513.65267702,0.00010199,2]
[352370904,1739065841413,-42631.44445692,0.00010255,2]
[352370905,1739065841422,-500.0,0.00010265,2]
[352370906,1739065841432,-847.54,0.00010265,2]
[352370907,1739065841442,-500.0,0.00010265,2]
[352370908,1739065841451,-500.0,0.00010265,2]
[352370909,1739065841461,-500.0,0.00010265,2]
[352370910,1739065841470,-421.71543066,0.00010265,2]
[352370911,1739065841480,-646.65,0.00010266,2]
[352370912,1739065841490,-500.0,0.00010266,2]
[352370913,1739065841499,-500.0,0.00010266,2]
[352370914,1739065841508,-507.73842966,0.00010266,2]
[352370915,1739065841518,-500.0,0.00010266,2]
[352370916,1739065841529,-500.0,0.00010266,2]
[352370917,1739065841538,-500.0,0.00010266,2]
[352370918,1739065841547,-515.26217684,0.00010266,2]
[352370919,1739065841557,-777.99,0.00010266,2]
[352370920,1739065841566,-504.48830558,0.00010266,2]
[352370921,1739065841576,-500.0,0.00010266,2]
[352370922,1739065841585,-580.08,0.00010266,2]
[352370923,1739065841595,-500.0,0.00010266,2]
[352370924,1739065841606,-500.0,0.00010266,2]
[352370925,1739065841615,-500.0,0.00010266,2]
[352370926,1739065841625,-500.0,0.00010266,2]
[352370927,1739065841636,-500.0,0.00010266,2]
[352370928,1739065841644,-668.51,0.00010266,2]
[352370929,1739065841654,-500.0,0.00010266,2]
[352370930,1739065841668,-500.0,0.00010266,2]
[352370931,1739065841678,-500.0,0.00010266,2]
[352370932,1739065841687,-500.0,0.00010266,2]
[352370933,1739065841697,-424.92507626,0.00010266,2]
[352370934,1739065841707,-500.0,0.00010266,2]
[352370935,1739065841717,-508.62679452,0.00010266,2]
[352370936,1739065841726,-500.0,0.00010266,2]
[352370937,1739065841735,-562.51,0.00010266,2]
[352370938,1739065841745,-520.48112984,0.00010266,2]
[352370939,1739065841755,-730.87,0.00010266,2]
[352370940,1739065841765,-734.963011,0.00010266,2]
[352370941,1739065841775,-500.0,0.00010266,2]
[352370942,1739065841784,-500.0,0.00010266,2]
[352370943,1739065841793,-500.0,0.00010266,2]
[352370944,1739065841802,-778.15,0.00010266,2]
[352370945,1739065841812,-500.0,0.00010266,2]
[352370946,1739065841822,-828.926949,0.00010266,2]
[352370947,1739065841832,-572.84196661,0.00010266,2]
[352370948,1739065841841,-517.27668048,0.00010266,2]
[352370949,1739065841851,-500.0,0.00010266,2]
[352370950,1739065841861,-500.0,0.00010266,2]
[352370951,1739065841871,-500.0,0.00010266,2]
[352370952,1739065841880,-500.0,0.00010266,2]
[352370953,1739065841890,-500.0,0.00010266,2]
[352370954,1739065841900,-782.31,0.00010266,2]
[352370955,1739065841910,-500.0,0.00010266,2]
[352370956,1739065841919,-500.0,0.00010266,2]
[352370957,1739065841929,-762.04,0.00010266,2]
[352370958,1739065841939,-500.0,0.00010266,2]
[352370959,1739065841949,-500.0,0.00010266,2]
[352370960,1739065841958,-513.33,0.00010266,2]
[352370961,1739065841969,-500.0,0.00010266,2]
[352370962,1739065841979,-500.0,0.00010266,2]
[352370963,1739065841989,-783.32,0.00010266,2]